Cogmind - Beta 13 @@@ ROGUE MODE // 2024.04.01 @ 16:43:29 Player: CrimsonOccultist Result: Destroyed by G-50 Soldier with Heavy Laser Performance ------------- Evolutions (1) 500 Regions Visited (6) 1200 Robots Destroyed (76) 380 Value Destroyed (1426) 1426 Prototype IDs (7) 140 Alien Tech Used (0) 0 Bonus (346) 346 TOTAL SCORE: 3992 Bonus ------- High Alert Combat Kills 46 Aligned with FarCom 300 Cogmind --------- Core Integrity 0/400 Matter 295/300 Energy 97/100 System Corruption 0% Temperature Cool (9) Movement Hovering (46) Location -8/Mines Parts ------- > --- POWER (1) -------- (None) > --- PROPULSION (2) --- Aerolev Unit Aerolev Unit > --- UTILITY (4) ------ Hacking Suite Hacking Suite Hacking Suite > --- WEAPON (2) ------- Heavy Flail > --- INVENTORY (5) ---- Aerolev Unit Weight Redist. System Improved Propulsion Shielding Light Armor Plating Skeleton Box Peak State ------------ > --- POWER ------------ Improved Ion Engine > --- PROPULSION ------- Aerolev Unit Aerolev Unit > --- UTILITY ---------- Hacking Suite Hacking Suite Hacking Suite Skeleton Box > --- WEAPON ----------- Heavy Flail Mining Claw > --- INVENTORY -------- Aerolev Unit Weight Redist. System Improved Propulsion Shielding Light Armor Plating [Rating: 30] Favorites ----------- Power Light Ion Engine Engine Light Ion Engine Propulsion Light Treads Treads Light Treads Hover Unit Aerolev Unit Utility Hacking Suite Device Terrain Scanner Storage Medium Storage Unit Processor Signal Interpreter Hackware Hacking Suite Protection Improved Propulsion Shielding Weapon Assault Rifle Ballistic Gun Assault Rifle Launcher Rocket Launcher Impact Weapon Heavy Flail Slashing Weapon Mining Claw Special Melee Weapon Datajack Build | -11 -10 -10 -9 -9 -9 -8 ------- Run | Yrd Mat Min Mat Min Exi Min Slots Evolved 2 | . . . 2 . . . Power . | . . . . . . . Propulsion . | . . . . . . . Utility 2 | . . . 2 . . . Weapon . | . . . . . . . Parts Attached 54 | 6 8 3 35 . 2 . Power 10 | 1 2 1 6 . . . Engine 10 | 1 2 1 6 . . . Core . | . . . . . . . Reactor . | . . . . . . . Propulsion 12 | 2 2 . 8 . . . Treads 8 | 2 2 . 4 . . . Leg . | . . . . . . . Wheel . | . . . . . . . Hover 4 | . . . 4 . . . Flight . | . . . . . . . Utility 16 | 1 3 . 10 . 2 . Device 2 | . . . 1 . 1 . Storage 3 | 1 1 . 1 . . . Processor 1 | . 1 . . . . . Hackware 4 | . . . 4 . . . Protection 6 | . 1 . 4 . 1 . Artifact . | . . . . . . . Weapon 16 | 2 1 2 11 . . . Energy Gun . | . . . . . . . Energy Cannon . | . . . . . . . Ballistic Gun 7 | 2 1 2 2 . . . Ballistic Cannon . | . . . . . . . Launcher 1 | . . . 1 . . . Special Weapon . | . . . . . . . Impact Weapon 4 | . . . 4 . . . Slashing Weapon 3 | . . . 3 . . . Piercing Weapon . | . . . . . . . Special Melee Weapon 1 | . . . 1 . . . Unidentified Prototypes 3 | . . . 2 . 1 . Parts Lost 10 | . 2 2 3 . . 3 Power 3 | . 2 . . . . 1 Propulsion . | . . . . . . . Utility 3 | . . . 2 . . 1 Weapon 4 | . . 2 1 . . 1 Highest Loss Streak 3 | . 1 2 1 . . 3 To Critical Strikes 1 | . . 1 . . . . Average Slot Usage (%) 96 | . 96 98 96 100 100 77 Engine 11 | . 13 14 11 11 11 . Treads 15 | . 27 28 8 . . . Hover 8 | . . . 13 22 22 22 Device 2 | . . . 4 . . . Storage 7 | . 14 14 4 . . . Processor 4 | . 1 14 4 . . . Hackware 12 | . . . 19 33 33 33 Protection 8 | . 10 . 9 11 11 11 Ballistic Gun 15 | . 28 26 8 . . . Impact Weapon 3 | . . . 5 11 11 11 Slashing Weapon 3 | . . . 5 11 11 . Naked Turns . | . . . . . . . Heaviest Build 27 | 12 19 16 27 14 14 14 Greatest Support 40 | 40 40 40 40 16 16 16 Greatest Overweight (x) 3 | . 3 . 1 . . . Average Overweight (x) . | . . . . . . . Largest Inventory Capacity 10 | 8 10 10 10 5 5 5 Average Capacity 7 | 6 8 10 7 5 5 5 Most Carried 10 | 4 10 10 10 5 5 5 Average Carried 6 | 1 6 8 6 5 4 5 Final Capacity 10 | 8 10 10 5 5 5 5 Final Carried 10 | 4 10 8 5 5 5 5 Class Distribution -------------------- 49% | Mutant 37% | Hacker-Mutant 13% | Scavenger-Mutant Dominant Class ---------------- Mutant | -10/Materials Mutant | -10/Mines Hacker-Mutant | -9/Materials Hacker-Mutant | -9/Mines Hacker-Mutant | -9/Exiles Hacker-Mutant | -8/Mines Resources | -11 -10 -10 -9 -9 -9 -8 ----------- Run | Yrd Mat Min Mat Min Exi Min Matter Collected 1313 | 173 481 60 599 . . . Remotely . | . . . . . . . Salvage Created 2157 | . 557 155 1365 . . 80 Parts 117 | . 35 14 68 . . . Haulers Intercepted 2 | . . . 2 . . . Recyclers Shooed 5 | . 3 . 2 . . . Parts Field Recycled . | . . . . . . . Retrieved Matter . | . . . . . . . Parts Self-Destructed . | . . . . . . . Prevented . | . . . . . . . Kills | -11 -10 -10 -9 -9 -9 -8 ------- Run | Yrd Mat Min Mat Min Exi Min Combat Hostiles Destroyed 50 | . 10 8 30 . . 2 Melee 10 | . . 1 9 . . . Guns 32 | . 10 7 15 . . . AOE 1 | . . . 1 . . . Classes Destroyed 12 | . 5 . 7 . . . Worker 4 | . . . 4 . . . Builder 5 | . 3 . 2 . . . Tunneler 1 | . . . 1 . . . Hauler 2 | . . . 2 . . . Recycler 5 | . 3 . 2 . . . Mechanic 1 | . . . 1 . . . Operator 1 | . . . 1 . . . Watcher 7 | . 2 . 5 . . . Swarmer 27 | . 6 6 15 . . . Grunt 14 | . 4 2 6 . . 2 Duelist 1 | . . . 1 . . . Sentry 8 | . . . 8 . . . Best Kill Streak 9 | . 4 3 9 . . 2 Combat Bots Only 4 | . 3 3 4 . . 2 Max Kills in Single Turn 2 | . 2 1 1 . . 1 Gunslinging 1 | . 1 . . . . . Exploded 1 | . . . 1 . . . Melee 1 | . . 1 1 . . . Uniques/NPCs Destroyed . | . . . . . . . Combat | -11 -10 -10 -9 -9 -9 -8 -------- Run | Yrd Mat Min Mat Min Exi Min Hostile Shots Fired 314 | . 66 60 170 . . 18 Missed 77 | . 13 10 50 . . 4 Damage Taken 2567 | . 571 447 1256 . . 293 Core 616 | . 114 98 278 . . 126 Absorbed by Shields . | . . . . . . . Redirected to Shielding 221 | . 22 . 147 . . 52 Regen/Repaired (Parts) 441 | . 207 . 234 . . . Core Remaining (%) 57 | 100 . 15 . . . . Volleys Fired 138 | . 66 28 44 . . . Largest 2 | . 2 2 2 . . . Hottest 46 | . 40 40 46 . . . Shots Fired 267 | . 132 47 88 . . . Gun 267 | . 132 47 88 . . . Cannon . | . . . . . . . Launcher . | . . . . . . . Special . | . . . . . . . Kinetic 267 | . 132 47 88 . . . Thermal . | . . . . . . . Explosive . | . . . . . . . Electromagnetic . | . . . . . . . Robot Hit Streak 10 | . 10 6 7 . . . Robot Miss Streak 4 | . 4 3 4 . . . Penetration Max . | . . . . . . . Secondary Targets 1 | . 1 . . . . . Max Gunslinging Chain 1 | . 1 . . . . . Shots Hit Robots 227 | . 88 33 102 . . 4 Core Hits 80 | . 31 15 34 . . . Critical Kills 1 | . . . 1 . . . Critical Parts Destroyed 13 | . . . 11 . . 2 Critical Strikes 16 | . . . 14 . . 2 Destroy 2 | . . . 2 . . . Smash 13 | . . . 11 . . 2 Sever 1 | . . . 1 . . . Melee Attacks 75 | . . . 68 . . 7 Impact 50 | . . . 43 . . 7 Slashing 25 | . . . 25 . . . Piercing . | . . . . . . . Sneak Attacks 12 | . . . 12 . . . Combat Hostiles 1 | . . . 1 . . . Follow-up Attacks 1 | . . . 1 . . . Damage Inflicted 4731 | . 975 257 3328 . . 171 Guns 2048 | . 970 255 823 . . . Cannons . | . . . . . . . Explosions . | . . . . . . . Melee 2667 | . . . 2496 . . 171 Ramming 16 | . 5 2 9 . . . Kinetic 2048 | . 970 255 823 . . . Thermal . | . . . . . . . Explosive . | . . . . . . . Electromagnetic . | . . . . . . . Impact 1927 | . . . 1756 . . 171 Slashing 740 | . . . 740 . . . Piercing . | . . . . . . . Highest Corruption . | . . . . . . . Average Corruption . | . . . . . . . Corruption Purged . | . . . . . . . Corruption Blocked . | . . . . . . . Overload Shots . | . . . . . . . Overflow Damage 1198 | . . . 1062 . . 136 Projectiles . | . . . . . . . Explosions . | . . . . . . . Melee 1198 | . . . 1062 . . 136 Knockbacks 10 | . . . 8 . . 2 Impact 9 | . . . 7 . . 2 Kinetic . | . . . . . . . Secondary 1 | . . . 1 . . . Self-Inflicted Damage . | . . . . . . . Shots . | . . . . . . . Rammed 7 | . 2 4 1 . . . Targets Rammed 9 | . 2 5 2 . . . Kicked . | . . . . . . . Crushed 2 | . . 1 1 . . . Highest Temperature 23 | . 15 18 23 . . 8 Average Temperature 8 | . 5 8 12 . . 8 Received Heat Transfer 633 | . 210 75 210 . . 138 Siege Activations . | . . . . . . . Robots Corrupted . | . . . . . . . Combat Hostiles . | . . . . . . . Parts Fried 20 | . . . 19 . . 1 Impact Corruptions 37 | . . . 33 . . 4 Robots Melted . | . . . . . . . Combat Hostiles . | . . . . . . . Parts Melted . | . . . . . . . Heat Transferred . | . . . . . . . Parts Sabotaged . | . . . . . . . Parts Stolen . | . . . . . . . Parts Stripped . | . . . . . . . Power Chain Reactions . | . . . . . . . Alert | -11 -10 -10 -9 -9 -9 -8 ------- Run | Yrd Mat Min Mat Min Exi Min Peak Influence 592 | . 144 141 592 140 . 45 Initial 140 | . . 6 25 140 . . Average 190 | . 63 79 299 140 . 33 Maximum Alert Level 2 | . . . 2 . . . Low Security (%) 67 | 100 100 100 37 100 . 100 Level 1 18 | . . . 35 . . . Level 2 14 | . . . 27 . . . Level 3 . | . . . . . . . Level 4 . | . . . . . . . Level 5 . | . . . . . . . High Security . | . . . . . . . Max Security . | . . . . . . . Squads Dispatched 6 | . 2 . 4 . . . Investigation 3 | . 1 . 2 . . . Extermination . | . . . . . . . Reinforcement 3 | . 1 . 2 . . . Assault . | . . . . . . . Garrison . | . . . . . . . Intercept . | . . . . . . . Searches Triggered . | . . . . . . . Construction Impeded . | . . . . . . . Haulers Reinforced . | . . . . . . . Active Scanning Responses . | . . . . . . . Cargo Convoy Interrupts . | . . . . . . . Stealth | -11 -10 -10 -9 -9 -9 -8 --------- Run | Yrd Mat Min Mat Min Exi Min Distress Signals 5 | . 1 . 4 . . . Communications Jammed . | . . . . . . . Distress Signals . | . . . . . . . Times Spotted 69 | . 17 9 39 . . 4 Peak Tracking Total 6 | . 3 3 6 . . 3 Tactical Retreats 5 | . . 1 3 . . 1 Traps | -11 -10 -10 -9 -9 -9 -8 ------- Run | Yrd Mat Min Mat Min Exi Min Traps Triggered 3 | . 1 . 2 . . . Indirectly . | . . . . . . . Trap Hack Attempts . | . . . . . . . Triggered . | . . . . . . . Disarmed . | . . . . . . . Reprogrammed 1 | . . . 1 . . . Reused 1 | . . . 1 . . . Traps Extracted . | . . . . . . . Installed . | . . . . . . . Triggered 2 | . . . 2 . . . Machines | -11 -10 -10 -9 -9 -9 -8 ---------- Run | Yrd Mat Min Mat Min Exi Min Machines Disabled 1 | . . . 1 . . . Max in Single Turn 1 | . . . 1 . . . Machines Repaired . | . . . . . . . Machines Dismantled . | . . . . . . . Machines Sabotaged . | . . . . . . . Overloaded Fab Kills . | . . . . . . . Hacking | -11 -10 -10 -9 -9 -9 -8 --------- Run | Yrd Mat Min Mat Min Exi Min Machines Accessed 24 | . 7 1 15 1 . . Terminals 15 | . 5 1 9 . . . Fabricators . | . . . . . . . Repair Stations 3 | . 1 . 2 . . . Recycling Units 3 | . 1 . 2 . . . Scanalyzers 2 | . . . 2 . . . Garrison Access . | . . . . . . . Total Hacks 91 | . 21 1 68 1 . . Successful 74 | . 16 1 56 1 . . Failed 17 | . 5 . 12 . . . Catastrophic . | . . . . . . . Database Lockouts . | . . . . . . . Manual 6 | . . . 3 . 3 . Terminals 55 | . 13 1 41 . . . Fabricators . | . . . . . . . Repair Stations 21 | . 5 . 16 . . . Recycling Units 9 | . 3 . 6 . . . Scanalyzers 5 | . . . 5 . . . Garrison Access . | . . . . . . . Terminal Hacks 46 | . 10 1 34 1 . . Record 4 | . . . 4 . . . Robot Analysis 2 | . 1 . 1 . . . Prototype ID Bank 3 | . 1 . 2 . . . Open Door 1 | . . . . 1 . . Branch Access Points 1 | . . . 1 . . . Emergency Access Points 1 | . . . 1 . . . Repair Station Index 1 | . . . 1 . . . Recycling Unit Index 1 | . . . 1 . . . Unreport Threat 4 | . 2 . 2 . . . Locate Traps 2 | . 1 . 1 . . . Reprogram Traps 2 | . . . 2 . . . Dispatch Records 1 | . 1 . . . . . Maintenance Status 2 | . 1 . 1 . . . Surveillance Status 1 | . . . 1 . . . Patrol Status 1 | . . . 1 . . . Transport Status 1 | . 1 . . . . . Investigation Status 1 | . . . 1 . . . Assault Status 2 | . . . 2 . . . Recall Investigation 1 | . . . 1 . . . Hauler Manifests 4 | . 1 . 3 . . . Registered Components 1 | . . . 1 . . . Registered Prototypes 1 | . . . 1 . . . Zone Layout 8 | . 1 1 6 . . . Fabricator Hacks . | . . . . . . . Repair Station Hacks 18 | . 5 . 13 . . . Scan Component 8 | . 2 . 6 . . . Repair 8 | . 2 . 6 . . . Refit 2 | . 1 . 1 . . . Recycling Unit Hacks 5 | . 1 . 4 . . . Report Inventory 1 | . . . 1 . . . Retrieve Components 4 | . 1 . 3 . . . Scanalyzer 5 | . . . 5 . . . Insert Component 2 | . . . 2 . . . Analyze 3 | . . . 3 . . . Garrison Access Hacks . | . . . . . . . Unauthorized Hacks . | . . . . . . . Terminals . | . . . . . . . Fabricators . | . . . . . . . Repair Stations . | . . . . . . . Recycling Units . | . . . . . . . Scanalyzers . | . . . . . . . Garrison Access . | . . . . . . . Data Cores Recovered 1 | . . . 1 . . . Used . | . . . . . . . Hacking Detections 17 | . 5 . 12 . . . Full Trace Events 4 | . . . 4 . . . Feedback Events . | . . . . . . . Feedback Blocked . | . . . . . . . Robot Schematics Acquired . | . . . . . . . Robots Built . | . . . . . . . Authchips . | . . . . . . . Time . | . . . . . . . Total Robot Build Rating . | . . . . . . . Part Schematics Acquired 2 | . . . 2 . . . Parts Built . | . . . . . . . Authchips . | . . . . . . . Time . | . . . . . . . Total Part Build Rating . | . . . . . . . Parts Repaired 8 | . 2 . 6 . . . Time 338 | . 52 . 286 . . . Parts Recycled . | . . . . . . . Recycled Matter . | . . . . . . . Retrieved Matter . | . . . . . . . Retrieved Components 12 | . . . 12 . . . Parts Scanalyzed 2 | . . . 2 . . . Part Schematics Acquired 2 | . . . 2 . . . Parts Damaged 1 | . . . 1 . . . Bothacking | -11 -10 -10 -9 -9 -9 -8 ------------ Run | Yrd Mat Min Mat Min Exi Min Used RIF Installer . | . . . . . . . Robots Hacked . | . . . . . . . Non-combat . | . . . . . . . Combat . | . . . . . . . Robot Hacks Applied . | . . . . . . . Relay Couplers Released . | . . . . . . . Fabnet Peak Effective % . | . . . . . . . Robots Rewired . | . . . . . . . Allies Hacked . | . . . . . . . Hacks Repelled . | . . . . . . . Allies | -11 -10 -10 -9 -9 -9 -8 -------- Run | Yrd Mat Min Mat Min Exi Min Total Allies . | . . . . . . . Largest Group . | . . . . . . . Highest-Rated Group . | . . . . . . . Highest-Rated Ally . | . . . . . . . Total Orders . | . . . . . . . Ally Attacks . | . . . . . . . Total Damage . | . . . . . . . Kills . | . . . . . . . Allies Corrupted . | . . . . . . . Allies Melted . | . . . . . . . Intel | -11 -10 -10 -9 -9 -9 -8 ------- Run | Yrd Mat Min Mat Min Exi Min Robot Analysis Total 2 | . 1 . 1 . . . Derelict Logs Recovered 1 | . . 1 . . . . Drone Launches . | . . . . . . . Drone Recoveries . | . . . . . . . Exploration | -11 -10 -10 -9 -9 -9 -8 ------------- Run | Yrd Mat Min Mat Min Exi Min Turns Passed 3876 | 91 996 541 1972 151 105 20 Spaces Moved 2974 | 52 434 285 1658 320 217 8 Core 4 | 4 . . . . . . Treads 1063 | 48 430 285 300 . . . Legs . | . . . . . . . Wheels . | . . . . . . . Hover 1907 | . 4 . 1358 320 217 8 Flight . | . . . . . . . Fastest Speed 46 | 50 160 160 46 46 46 46 Average Speed 87 | 151 161 160 67 46 46 46 Slowest Speed 340 | 160 340 160 160 46 46 46 Overloaded Moves . | . . . . . . . Propulsion Burnouts . | . . . . . . . Robots Hopped . | . . . . . . . Cave-ins Triggered . | . . . . . . . Exploration Rate (%) 51 | 4 73 72 98 48 60 3 Regions Visited 6 Branch Regions 4 Pre-discovered Areas . | . . . . . . . Known Exits Taken 3 | . 1 1 1 . . . Unknown Exits Taken 3 | 1 . . . 1 1 . Scrap Searched 1 | . . 1 . . . . Spaces Dug 4 | . . . 4 . . . Terrain Destroyed 4 | . . . 4 . . . Melee 4 | . . . 4 . . . Projectile . | . . . . . . . AOE . | . . . . . . . Terrain Rammed . | . . . . . . . Walls Destroyed . | . . . . . . . Machines Disabled . | . . . . . . . Actions | -11 -10 -10 -9 -9 -9 -8 --------- Run | Yrd Mat Min Mat Min Exi Min Total 3889 | 61 603 329 2336 323 222 15 Wait 546 | . 79 6 457 4 . . Move 2968 | 51 433 284 1657 319 216 8 Hop . | . . . . . . . Pick Up 43 | 4 9 1 28 . 1 . Fast Attach 24 | 6 4 1 12 . 1 . Attach 18 | . 3 1 13 . 1 . Detach 13 | . 2 . 10 . 1 . Swap 12 | . 1 1 10 . . . Drop 46 | . 4 2 38 . 2 . Fire 138 | . 66 28 44 . . . Melee 72 | . . . 65 . . 7 Ram . | . . . . . . . Kick . | . . . . . . . Crush 9 | . 2 5 2 . . . Escape Stasis . | . . . . . . . Rewire . | . . . . . . . Trap . | . . . . . . . Miscellaneous . | . . . . . . . Route ------- -11/Scrapyard -10/Materials (discovered 3 exits: *Mat x2 / *Min) -10/Mines (discovered 2 exits: *Mat x2) -9/Materials (discovered 5 exits: [*Mat x3] / *Min x2) -9/Mines (discovered 3 exits: [*Mat] / *Exi / [*Zio]) -9/Exiles -8/Mines History --------- Turn | Location | Event 3 | -11/Scrapyard | Discovered new exit (range 16) 92 | -11/Scrapyard | Entered Materials 272 | -10/Materials | Discovered new exit (range 4) 304 | -10/Materials | Build established: Mutant 495 | -10/Materials | Discovered new exit (range 3) 689 | -10/Materials | Discovered new exit (range 6) 918 | -10/Materials | Repaired Lgt. Treads 946 | -10/Materials | Repaired Lgt. Treads 1053 | -10/Materials | Identified exit to Mines 1088 | -10/Materials | Entered Mines 1097 | -10/Mines | Core integrity fell below 50% 1245 | -10/Mines | Discovered new exit (range 16) 1284 | -10/Mines | Identified exit to Materials 1446 | -10/Mines | Discovered exit to Materials (range 8) 1547 | -10/Mines | Core integrity fell below 20% 1629 | -10/Mines | Entered Materials 1629 | -9/Materials | Evolved 2 slots: Utility x2 1630 | -9/Materials | Identified exit to Mines 1833 | -9/Materials | Repaired Lgt. Ion Engine 1884 | -9/Materials | Repaired Lgt. Treads 2318 | -9/Materials | Build established: Scavenger-Mutant 2482 | -9/Materials | Discovered new exit (range 12) 2637 | -9/Materials | Discovered new exit (range 15) 2675 | -9/Materials | Core integrity fell below 50% 2728 | -9/Materials | Build established: Hacker-Mutant 2946 | -9/Materials | Repaired Imp. Propulsion Shielding 3024 | -9/Materials | Repaired Broken Aerolev Unit 3085 | -9/Materials | Repaired Aerolev Unit 3146 | -9/Materials | Repaired Aerolev Unit 3442 | -9/Materials | Discovered new exit (range 7) 3601 | -9/Materials | Entered Mines 3603 | -9/Mines | Met a Derelict who couldn't figure out how to use a Trap Extractor 3624 | -9/Mines | Met a Derelict bent on vengeance 3645 | -9/Mines | A Derelict revealed a hidden shortcut to a safe place 3647 | -9/Mines | Discovered new exit (range 16) 3715 | -9/Mines | Found a hidden stash of uninstalled traps 3750 | -9/Mines | Deemed a non-threat by the Exiles lab entrance 3750 | -9/Mines | Discovered new exit (range 5) 3752 | -9/Mines | Entered Exiles 3764 | -9/Exiles | Met 8R-AWN 3772 | -9/Exiles | Met EX-HEX 3785 | -9/Exiles | Met EX-BIN 3790 | -9/Exiles | Aligned with FarCom system 3791 | -9/Exiles | Given EX-Vault access code 3802 | -9/Exiles | Opened EX-Vault 3807 | -9/Exiles | Found Prototype Device 3811 | -9/Exiles | Identified Skeleton Box 3820 | -9/Exiles | Warned to stay clear of 0b10 Research branches 3836 | -9/Exiles | Met EX-DEC 3852 | -9/Exiles | Discovered new exit (range 14) 3857 | -9/Exiles | Left Exiles lab with Skeleton Box 3857 | -9/Exiles | Entered Mines 3862 | -8/Mines | Core integrity fell below 20% 3877 | -8/Mines | Destroyed by G-50 Soldier with Heavy Laser Last Messages --------------- (Smash). 03859_ Destroyed Imp. Heat Sink. 03859_ Destroyed Aluminum Leg. 03859_ G-47 Trooper system corrupted by crushing effect. 03859_ G-47 Trooper knocked back. 03859_ G-47 Trooper IFF system glitched. 03860_ G-47 Trooper system terminally corrupted. 03864_ G-47 Trooper knocked back. 03867_ G-47 Trooper suffers critical hit (Smash). 03867_ Destroyed Imp. Heat Sink. 03867_ G-47 Trooper system corrupted by crushing effect. 03871_ Imp. Propulsion Shielding destroyed. 03872_ Destroyed Lgt. Nuclear Core. 03872_ G-47 Trooper system corrupted by crushing effect. 03873_ G-47 Trooper system terminally corrupted. 03873_ Aluminum Leg fried. Map ----- +----------------------------------------------------+ | | | | | | | | | | | | | | | | | | | | | | | | | | | | | | | | | | | | | | | | | ???????????????????????????????? | | ???????????????????????????????? | | ?????????????????????####??????? | | ???????????????????###;;######?? | | ??????????????????## %% g #?? | | ??????????????????#; %@ #?? | | ??????????????????#; #?? | | ??????????????????#; #?? | | ??????????????????## #?? | | ???????????????????# #?? | | ???????????????????#;;;; ;;###?? | | ???????????????????##### ###???? | | ???????????????????????# #?????? | | ???????????????????????# #?????? | | ???????????????????????# #?????? | | ???????????????????????# #?????? | | ???????????????????????# #?????? | | ??????????????????????? #?????? | | ???????????????????????# #?????? | | ???????????????????????? ??????? | | ???????????????????????? ??????? | | ???????????????????????? ??????? | | ???????????????????????? ??????? | | ???????????????????????? ??????? | | ???????????????????????????????? | | ???????????????????????????????? | | ???????????????????????????????? | | ???????????????????????????????? | | ???????????????????????????????? | | ???????????????????????????????? | +----------------------------------------------------+ Best States ------------- Heat Dissipation 28 Energy Generation 12 Energy Capacity 265 Matter Stores 300 Matter Capacity 300 Sight Range 16 Terrain Scan Range 14 Terrain Scan Density 10 Armor Coverage 150 Core Shielding 20 Propulsion Shielding 66 Evasion (%) 55 Recoil Reduction 2 Offensive Hacking 30 Item Schematics ----------------- Rocket Launcher | -9/Materials | Scanalyzed Aerolev Unit | -9/Materials | Scanalyzed Robot Schematics ------------------ None Fabricated ------------ Nothing Alien Tech Used ----------------- None Achievements -------------- None Challenges ------------ None Game ------ Seed FireModifiedFlamer Manual? 0 Play Time 00:48:16 Cumulative 7.8 hours Start 2024.04.01 @ 15:55:03 End 2024.04.01 @ 16:43:29 Sessions 1 Manual Loads 0 Difficulty Rogue Special Mode None Game No. 10 Rogue 10 Adventurer 0 Explorer 0 Win Type - Total 0 Types 0/0/0/0/0/0/0/0/0 Lore% 5 Gallery% 10 Achievement% 14 Wizard Run 0 Options --------- Layout 2 ASCII 0 Keyboard 1 Movement Numpad Keybinds 0 Fullscreen 1 Font 24/Smallcaps Map View 50x44 Zoom Use 0% Tactical HUD 1 Map Filters NONE Filters NONE Steam 1 RUN: 9519e9d2-dc09-47c9-8289-2e398410aafa